[Event "1st Festival ChessInLyon-GM 2024"]
[Site "Lyon"]
[Date "2024.04.27"]
[Round "8.1"]
[White "Vlachos, Anatole"]
[Black "Gatineau, Yovann"]
[Result "1/2-1/2"]
[ECO "C11"]
[WhiteElo "2482"]
[BlackElo "2408"]
[Annotator "TA"]
[PlyCount "54"]
[EventDate "2024.04.23"]
[EventType "tourn"]
[EventCountry "FRA"]
[SourceTitle "playchess.com"]
[Source "ChessBase"]
[SourceQuality "1"]
[TimeControl "40/5400+30:1800+30"]

{[%evp 16,54,14,15,27,5,27,31,29,32,35,42,70,51,51,36,39,36,35,39,42,0,0,0,0,-11,-11,-14,26,-532,864,838,879,-39,-40,-137,1177,-324,-73,-80,320]} 1. e4 {[%emt 0:00:03][%cal Be2e4,Be4e5][%mdl 32]} e6 {[%emt 0:02:58]} 2. d4 {[%emt 0:00:04]} d5 {[%emt 0:00:07]} 3. Nc3 {[%emt 0:00:04]} Nf6 {[%emt 0:00:12]} 4. e5 {[%emt 0:00:04]} Nfd7 {[%emt 0:00:16]} 5. f4 {[%emt 0:00:04]} c5 {[%emt 0:00:04]} 6. Nf3 {[%emt 0:00:04][%cal Bg1f3,Bf3d4,Bd4b3][%mdl 32]} Nc6 {[%emt 0:00:15]} 7. Be3 {[%emt 0:00:04]} Be7 {[%emt 0:00:04]} 8. Qd2 {[%emt 0:00:05]} O-O {[%emt 0:00:18]} 9. dxc5 {[%emt 0:00:03]} Qa5 {[%emt 0:00:17]} 10. Nd4 {[%emt 0:00:05]} Bxc5 {[%emt 0:00:41]} 11. Nb3 {[%emt 0:00:04]} Bxe3 {[%emt 0:00:06] White is slightly better.} 12. Qxe3 {[%emt 0:00:03]} Qb6 {[%emt 0:00:21]} 13. Qxb6 {[%emt 0:00:04]} axb6 {[%emt 0:00:04]} 14. O-O-O {[%emt 0:00:04]} g5 {[%emt 0:10:14]} 15. g3 {[%emt 0:00:02]} gxf4 {[%emt 0:01:39]} 16. gxf4 {[%emt 0:00:02]} f6 {[%emt 0:00:08]} 17. Bh3 {[%emt 0:16:32]} Nc5 {[%emt 0:03:08]} 18. f5 {[%emt 0:02:32]} exf5 {[%emt 0:17:22]} 19. exf6 {[%emt 0:07:29]} (19. Rxd5 $2 Nxb3+ (19... Nxe5 20. Nxc5 bxc5 21. Rf1 $16) 20. cxb3 fxe5 $19 (20... Nxe5 21. Rf1 $11)) 19... Nxb3+ {[%emt 0:03:38]} 20. cxb3 {[%emt 0:02:11] Rhg1+ would now be deadly.} d4 {[%emt 0:04:02]} 21. Nd5 {[%emt 0:03:09]} Ra5 {[%emt 0:55:06] [#]} (21... Rxa2 {looks sharper.} 22. Rhg1+ Kf7 23. Kb1 Ra5) 22. a3 $2 {[%mdl 8192] [#]} Rxa3 $4 {[%emt 0:00:00][%mdl 8192]} 23. Rhg1+ $18 {[%emt 0:14:54]} Kh8 {[%emt 0:00:00]} 24. Ne7 $2 {[%emt 0:16:56]} (24. bxa3 $18 Be6 25. Nf4 (25. Nxb6 Rxf6 26. Rde1 h6 $18) 25... Rxf6 26. Nxe6 Rxe6 27. Bxf5) 24... Ra5 $15 {[%emt 0:00:00]} 25. Nxc6 {[%emt 0:01:21] [#]} (25. Nxc8 $1 $15 Rxc8 26. Rg5) 25... Be6 $2 {[%emt 0:00:00][%mdl 8192] [#]} 26. Rxd4 $4 {[%mdl 8192]} bxc6 $2 {[%emt 0:00:00]} (26... Ra1+ $19 {has better winning chances.} 27. Kc2 Rxg1) 27. Rg3 {[#]} Bxb3 $2 {[%emt 0:00:00][%mdl 40960] Weighted Error Value: White=0.97/Black=0.29 (precise) .  Loses game:     	White=1     	Black=2      Missed win:     	White=1     	Black=2      Inaccurate:     	White=1     	Black=2      OK:         	White=5     	Black=7     . An unexpected result.} 1/2-1/2

[Event "1st Festival ChessInLyon-GM 2024"]
[Site "Lyon"]
[Date "2024.04.27"]
[Round "8.2"]
[White "Droin, Augustin"]
[Black "Fedorchuk, Sergey A."]
[Result "0-1"]
[ECO "C54"]
[WhiteElo "2478"]
[BlackElo "2557"]
[Annotator "TA"]
[PlyCount "50"]
[EventDate "2024.04.23"]
[EventType "tourn"]
[EventCountry "FRA"]
[SourceTitle "playchess.com"]
[Source "ChessBase"]
[SourceQuality "1"]
[TimeControl "40/5400+30:1800+30"]

{[%evp 14,50,32,3,5,2,17,12,29,0,5,-12,-8,-35,-22,-37,-32,-8,-21,-23,-34,-15,-27,-11,-16,-36,-21,-33,-39,-606,-663,-688,-697,-702,-702,-1361,-1318,-891,-723]} 1. e4 {[%emt 0:03:06]} e5 {[%emt 0:00:34]} 2. Nf3 {[%emt 0:00:04]} Nc6 {[%emt 0:00:10]} 3. Bc4 {[%emt 0:00:26]} Bc5 {[%emt 0:00:13]} 4. d3 {[%emt 0:01:17]} Nf6 {[%emt 0:00:48]} 5. O-O {[%emt 0:00:28]} d6 {[%emt 0:02:45]} 6. c3 {[%emt 0:00:24]} a6 {[%emt 0:01:29]} 7. Re1 {[%emt 0:00:46]} Ba7 {[%emt 0:05:39]} 8. Bb3 {[%emt 0:06:31]} h6 {[%emt 0:04:31]} 9. Be3 {[%emt 0:00:28]} O-O {[%emt 0:02:45]} 10. Bxa7 {[%emt 0:00:14]} Rxa7 {[%emt 0:00:03] The position is equal.} 11. h3 {[%emt 0:00:48]} Nh5 {[%emt 0:12:18]} 12. Kh2 {[%emt 0:13:57]} Nf4 {[%emt 0:05:13]} 13. Re3 {[%emt 0:06:28]} Ra8 {[%emt 0:01:31]} 14. Ng1 {[%emt 0:07:00]} Be6 {[%emt 0:07:12]} 15. g3 {[%emt 0:06:27]} Bxb3 {[%emt 0:07:38]} 16. Qxb3 {[%emt 0:01:50]} Ne6 {[%emt 0:00:16]} 17. Qxb7 {[%emt 0:00:41]} Qd7 {[%emt 0:00:07]} 18. Qb3 {[%emt 0:00:04]} f5 {[%emt 0:00:07]} 19. exf5 {[%emt 0:04:05]} Rxf5 {[%emt 0:01:49]} 20. Rf3 {[%emt 0:00:02]} Rb8 {[%emt 0:07:51]} 21. Qd5 {[%emt 0:10:04][%mdl 8192] [#] Loses the game.} (21. Qd1 $15 Rxf3 22. Nxf3) 21... Ne7 $19 {[%emt 0:04:03] Black is clearly winning.} 22. Qc4 {[%emt 0:01:45]} d5 {[%emt 0:10:32]} 23. Qxa6 {[%emt 0:00:21]} Ng5 {[%emt 0:03:10]} 24. Rxf5 {[%emt 0:03:15]} Qxf5 {[%emt 0:01:03]} (24... Nxf5 25. Nd2 Rxb2 26. Rd1 $17) 25. Kg2 {[%emt 0:00:14]} Rxb2 {[%emt 0:04:21] Weighted Error Value: White=0.55/Black=0.02 (flawless) .  Loses game:     	White=1     	---        Inaccurate:     	White=1     	---        OK:         	White=3     	Black=6      Best:        	---       	Black=1} 0-1

[Event "1st Festival ChessInLyon-GM 2024"]
[Site "Lyon"]
[Date "2024.04.27"]
[Round "8.3"]
[White "Boyer, Mahel"]
[Black "Shyaamnikhil P"]
[Result "1/2-1/2"]
[ECO "E14"]
[WhiteElo "2432"]
[BlackElo "2390"]
[Annotator "TA"]
[PlyCount "47"]
[EventDate "2024.04.23"]
[EventType "tourn"]
[EventCountry "FRA"]
[SourceTitle "playchess.com"]
[Source "ChessBase"]
[SourceQuality "1"]
[TimeControl "40/5400+30:1800+30"]

{[%evp 20,47,30,30,37,33,46,37,32,16,102,29,43,0,0,0,0,-13,0,0,57,38,20,0,12,0,0,0,0,0]} 1. d4 {[%emt 0:04:15]} Nf6 {[%emt 0:00:33]} 2. c4 {[%emt 0:00:33]} e6 {[%emt 0:03:32]} 3. Nf3 {[%emt 0:00:29]} Bb4+ {[%emt 0:02:17]} 4. Nbd2 {[%emt 0:00:12]} O-O {[%emt 0:02:16]} 5. a3 {[%emt 0:00:08]} Bxd2+ {[%emt 0:02:21]} 6. Qxd2 {[%emt 0:02:28]} d6 {[%emt 0:01:00]} 7. e3 {[%emt 0:02:54]} b6 {[%emt 0:01:25]} 8. Be2 {[%emt 0:00:36]} Bb7 {[%emt 0:00:17]} 9. O-O {[%emt 0:01:01]} a5 {[%emt 0:03:08]} 10. b3 {[%emt 0:00:52]} Nbd7 {[%emt 0:04:10]} 11. Bb2 {[%emt 0:00:04]} Ne4 {[%emt 0:00:18]} 12. Qc2 {[%emt 0:02:06]} f5 {[%emt 0:01:18] [#]} 13. d5 $1 {[%emt 0:07:36]} e5 {[%emt 0:06:09] Against Nd4. White is slightly better.} 14. b4 {[%emt 0:00:03]} Rf6 {[%emt 0:03:14]} (14... b5 $11 {remains equal.}) 15. Bd3 {[%emt 0:06:09]} (15. Nh4 $16) 15... Rh6 {[%emt 0:02:43]} 16. Bxe4 {[%emt 0:05:17]} (16. g3 $1 $14) 16... fxe4 $11 {[%emt 0:00:16]} 17. Qxe4 {[%emt 0:00:03]} Nf6 {[%emt 0:00:15]} 18. Qc2 {[%emt 0:00:35]} Qe8 $1 {[%emt 0:03:50] Hoping for ...Bc8.} 19. h3 {[%emt 0:18:21]} Qh5 {[%emt 0:01:22]} (19... b5 $11) 20. Nh2 $1 $14 {[%emt 0:00:08]} Rg6 {[%emt 0:04:15]} 21. f4 {[%emt 0:01:44] The position is equal.} Qxh3 {[%emt 0:12:41]} 22. Rf3 {[%emt 0:01:57]} Qh5 {[%emt 0:00:48] [#] White must now prevent ...Bc8.} 23. fxe5 {[%emt 0:00:21]} dxe5 {[%emt 0:00:15] ...Bc8 is the strong threat.} 24. Qf5 {[%emt 0:09:30] Weighted Error Value: White=0.16 (very precise) /Black=0.21 (precise) .  Mistake:       	White=2     	Black=2      OK:         	White=5     	Black=5      Best:        	White=1     	---        Strong:       	White=1     	Black=1} 1/2-1/2

[Event "1st Festival ChessInLyon-GM 2024"]
[Site "Lyon"]
[Date "2024.04.27"]
[Round "8.4"]
[White "Tahay, Alexis"]
[Black "Pourramezanali, Amirreza"]
[Result "0-1"]
[ECO "C72"]
[WhiteElo "2382"]
[BlackElo "2502"]
[Annotator "TA"]
[PlyCount "52"]
[EventDate "2024.04.23"]
[EventType "tourn"]
[EventCountry "FRA"]
[SourceTitle "playchess.com"]
[Source "ChessBase"]
[SourceQuality "1"]
[TimeControl "40/5400+30:1800+30"]

{[%evp 10,52,41,30,24,19,22,2,7,0,11,0,0,-27,-30,-58,-26,-37,-45,-41,-29,-42,0,0,0,0,46,51,49,45,49,53,49,49,47,-60,-119,-66,-29,-32,-50,-77,-57,-807,-787]} 1. e4 {[%emt 0:03:00]} e5 {[%emt 0:00:05]} 2. Nf3 {[%emt 0:00:04]} Nc6 {[%emt 0:00:06]} 3. Bb5 {[%emt 0:00:03]} a6 {[%emt 0:00:07]} 4. Ba4 {[%emt 0:00:02]} d6 {[%emt 0:00:08]} 5. O-O {[%emt 0:00:41]} Bd7 {[%emt 0:00:04]} 6. c4 {[%emt 0:01:40]} Nf6 {[%emt 0:00:09]} 7. Re1 {[%emt 0:04:15]} Bg4 {[%emt 0:00:38]} 8. h3 {[%emt 0:01:02]} Bxf3 {[%emt 0:00:03] The position is equal.} 9. Qxf3 {[%emt 0:00:05]} Nd7 {[%emt 0:00:04][%cal Ob7b5]} 10. Bxc6 {[%emt 0:02:06]} bxc6 {[%emt 0:00:09]} 11. d4 {[%emt 0:02:45]} exd4 {[%emt 0:08:59]} 12. e5 $1 {[%emt 0:00:09]} dxe5 {[%emt 0:05:35] aiming for ...Qf6.} 13. Qxc6 {[%emt 0:00:12]} f6 {[%emt 0:00:36]} 14. f4 {[%emt 0:00:06]} Bb4 {[%emt 0:01:18]} 15. Bd2 {[%emt 0:00:04]} Bxd2 {[%emt 0:00:15]} 16. Nxd2 {[%emt 0:00:03]} O-O {[%emt 0:00:30]} 17. Nf3 {[%emt 0:01:10]} Kh8 {[%emt 0:18:50]} (17... exf4 $11 {should be considered.} 18. Rad1 (18. Nxd4 Ne5 $11) 18... Ne5 19. Nxe5 fxe5) 18. fxe5 $14 {[%emt 0:05:07]} Nxe5 {[%emt 0:00:23]} 19. Nxe5 {[%emt 0:00:05]} fxe5 {[%emt 0:00:04]} 20. Rxe5 {[%emt 0:00:11]} Qh4 {[%emt 0:09:34] [#] Inhibits Qe4.} 21. Rf5 $1 {[%emt 0:12:57] Wards off Qf2+. Hoping for Raf1.} Rad8 {[%emt 0:08:46]} 22. Raf1 {[%emt 0:04:56]} (22. Rxf8+ $1 $14 Rxf8 23. Qxc7) 22... Rxf5 $15 {[%emt 0:00:43]} 23. Rxf5 {[%emt 0:00:02]} d3 $36 {[%emt 0:04:13][%mdl 2048] Black has some pressure.} 24. Qc5 $1 {[%emt 0:07:13] White wants to mate with Rf8+.} Qe1+ {[%emt 0:06:13]} 25. Kh2 {[%emt 0:00:10] [#]} Qe8 {[%emt 0:01:48] Prevents Qf8+. Black is much more active.} 26. Re5 $2 {[%emt 0:00:27][%mdl 8192] [#] Prevents d2} (26. Rd5 $15) 26... Qxe5+ $3 {[%emt 0:00:08][%mdl 512] Weighted Error Value: White=0.51/Black=0.10 (very precise) .  Loses game:     	White=1     	---        Mistake:       	White=1     	Black=1      Inaccurate:     	White=1     	Black=1      OK:         	White=4     	Black=9      Best:        	White=2     	Black=2      Strong:       	White=2     	---        Brilliant:      	White=1     	Black=1} 0-1

[Event "1st Festival ChessInLyon-GM 2024"]
[Site "Lyon"]
[Date "2024.04.27"]
[Round "8.5"]
[White "Poetsch, Hagen"]
[Black "Crut, Aurelien"]
[Result "1-0"]
[ECO "C18"]
[WhiteElo "2460"]
[BlackElo "2312"]
[Annotator "TA"]
[PlyCount "65"]
[EventDate "2024.04.23"]
[EventType "tourn"]
[EventCountry "FRA"]
[SourceTitle "playchess.com"]
[Source "ChessBase"]
[SourceQuality "1"]
[TimeControl "40/5400+30:1800+30"]

{[%evp 14,65,-16,-10,-10,0,-3,-11,33,-35,-29,-52,25,22,27,14,34,30,15,0,14,14,58,45,67,89,237,242,182,106,106,112,121,126,305,261,280,139,196,104,1243,1224,1071,458,865,798,29993,29994,29994,29995,29995,29994,29996,29997]} 1. e4 {[%emt 0:00:03]} e6 {[%emt 0:00:11]} 2. d4 {[%emt 0:00:04]} d5 {[%emt 0:00:06]} 3. Nc3 {[%emt 0:00:04]} Bb4 {[%emt 0:00:10]} 4. e5 {[%emt 0:00:42]} c5 {[%emt 0:00:14]} 5. a3 {[%emt 0:00:06]} Bxc3+ {[%emt 0:00:07]} 6. bxc3 {[%emt 0:00:05]} Ne7 {[%emt 0:00:20]} 7. h4 {[%emt 0:00:06]} Qc7 {[%emt 0:01:12]} 8. Rh3 {[%emt 0:00:17]} b6 {[%emt 0:13:51]} 9. h5 {[%emt 0:01:48]} h6 {[%emt 0:02:11]} 10. Qg4 {[%emt 0:00:58]} Kf8 {[%emt 0:13:36] The position is equal.} 11. Bd3 {[%emt 0:07:58]} (11. Rf3 $14) 11... cxd4 $1 $15 {[%emt 0:09:12]} 12. Ne2 {[%emt 0:00:48]} (12. Qxd4 Nbc6 13. Qf4 Nxe5 $17 (13... Qxe5+ 14. Qxe5 Nxe5 15. Rh4 $17)) 12... Ba6 {[%emt 0:21:45]} ({Black should play} 12... dxc3 $15 13. Bf4 Rg8) 13. cxd4 $11 {[%emt 0:26:55]} ({Much worse is} 13. Qxd4 Nbc6 14. Qh4 Bxd3 15. cxd3 Qxe5 $17 (15... Nxe5 16. Kf1 $17)) 13... Bxd3 {[%emt 0:00:29]} 14. Rxd3 {[%emt 0:00:10]} Nbc6 {[%emt 0:15:17]} 15. Rf3 {[%emt 0:16:26]} Kg8 {[%emt 0:02:11]} 16. Qf4 {[%emt 0:00:49]} Nd8 {[%emt 0:01:52]} 17. c3 {[%emt 0:04:13] Black is weak on the dark squares} Kf8 {[%emt 0:07:11]} 18. a4 {[%emt 0:04:01]} Ke8 {[%emt 0:00:39]} 19. Ba3 {[%emt 0:00:27][%cal Oc3c4]} (19. Kf1 {simplifies} Kf8 20. a5 bxa5 21. Ba3) 19... Kd7 {[%emt 0:01:42]} (19... Qd7 $16) 20. Qg4 $1 $18 {[%emt 0:01:07][%cal Oa3e7]} Rg8 {[%emt 0:01:04]} 21. Bd6 {[%emt 0:09:09]} (21. c4 $18) 21... Qc4 $16 {[%emt 0:00:19]} 22. a5 {[%emt 0:00:45] axb6 would now be deadly. The board is on fire. White is more active.} bxa5 {[%emt 0:01:11]} 23. Rxa5 {[%emt 0:00:25] Hoping for Rc5.} Nec6 $2 {[%emt 0:01:03]} (23... f5 $16 24. Qf4 Nb7) 24. Rc5 $18 {[%emt 0:02:30]} Qa6 {[%emt 0:00:39] [#]} 25. Nc1 {[%emt 0:01:42]} (25. Rxd5 $2 {loses.} Qa1+ 26. Kd2 Qa2+ 27. Kd3 f5 $19 (27... Qxd5 $2 28. c4 $19) (27... Qxd5 $2 28. c4 $19)) (25. c4 $1 $18 {[%cal Rc4d5]} Qa1+ 26. Kd2) 25... Qa1 {[%emt 0:01:12] [#]} (25... Rc8 $16) 26. Kd1 {[%emt 0:00:37]} ({Weaker is} 26. Qf4 Rc8 $14) (26. Kd2 $1 $18) 26... Qb1 $2 {[%emt 0:01:13][%mdl 8192]} (26... Rc8 $16) 27. c4 {[%emt 0:05:34]} f5 {[%emt 0:01:27]} 28. Qh4 {[%emt 0:00:12]} (28. exf6 $142 Kxd6 29. f7) 28... Qe4 {[%emt 0:00:52]} (28... Rc8 $142 29. cxd5 exd5 30. Rxd5 Ra8 31. Ba3+ Ke8) 29. Rf4 {[%emt 0:00:41]} Qxg2 {[%emt 0:00:20] [#]} 30. Qe7+ $3 {[%mdl 512] White mates.} Nxe7 {[%emt 0:00:43]} 31. Rc7+ {[%emt 0:00:29]} Ke8 {[%emt 0:00:08]} 32. Rxe7+ {[%emt 0:00:05]} Kf8 {[%emt 0:00:08]} 33. Rxe6+ {[%emt 0:00:14] Weighted Error Value: White=0.59/Black=0.61.  Loses game:     	---       	Black=2      Mistake:       	White=4     	Black=3      Inaccurate:     	---       	Black=3      OK:         	White=7     	Black=5      Best:        	White=2     	---        Strong:       	---       	Black=1} 1-0

[Event "1st Festival ChessInLyon-GM 2024"]
[Site "Lyon"]
[Date "2024.04.28"]
[Round "9.1"]
[White "Gatineau, Yovann"]
[Black "Poetsch, Hagen"]
[Result "1/2-1/2"]
[ECO "D39"]
[WhiteElo "2408"]
[BlackElo "2460"]
[Annotator "TA"]
[PlyCount "61"]
[EventDate "2024.04.23"]
[EventType "tourn"]
[EventCountry "FRA"]
[SourceTitle "playchess.com"]
[Source "ChessBase"]
[SourceQuality "1"]
[TimeControl "40/5400+30:1800+30"]

{[%evp 11,61,22,47,38,39,41,35,41,43,41,36,31,63,51,90,87,89,89,86,79,106,116,133,117,99,39,23,17,35,43,24,31,67,64,68,0,0,0,0,0,0,-45,-42,-45,-47,-82,-68,-246,0,-87,0,-216]} 1. d4 {[%emt 0:02:25]} Nf6 {[%emt 0:00:09]} 2. c4 {[%emt 0:00:10]} e6 {[%emt 0:00:06]} 3. Nf3 {[%emt 0:00:10]} d5 {[%emt 0:00:07]} 4. Nc3 {[%emt 0:00:11]} Bb4 {[%emt 0:00:20]} 5. Bg5 {[%emt 0:02:37]} dxc4 {[%emt 0:00:11]} 6. e4 {[%emt 0:00:08]} b5 {[%emt 0:01:03]} 7. a4 {[%emt 0:02:14]} c5 {[%emt 0:00:08]} 8. axb5 {[%emt 0:02:06]} cxd4 {[%emt 0:00:07]} 9. Nxd4 {[%emt 0:01:04] White is slightly better.} (9. Bxf6 {simplifies} Qxf6 10. Qxd4 Qxd4 11. Nxd4 Bc5 12. Nf3) 9... h6 {[%emt 0:00:07]} 10. Be3 {[%emt 0:01:43] And now Qa4 would win.} Nxe4 {[%emt 0:00:06]} 11. Qc2 {[%emt 0:02:13]} (11. Bxc4 $2 Nxc3 12. bxc3 Bxc3+ 13. Ke2 Bxa1 14. Qxa1 O-O $19) 11... Bb7 {[%emt 0:02:33]} 12. Bxc4 {[%emt 0:04:35]} Qc7 {[%emt 0:15:38]} 13. O-O $1 {[%emt 0:00:55]} Nxc3 {[%emt 0:16:21]} 14. bxc3 {[%emt 0:05:53]} Qxc4 {[%emt 0:01:49]} 15. cxb4 {[%emt 0:00:32]} Qd5 {[%emt 0:01:09][%csl Gb7][%cal Rd5g2]} 16. f3 {[%emt 0:01:26][%cal Od4e6] Active counter play!} O-O {[%emt 0:05:57][%cal Bh8f8,Bf8c8,Bc8c4,Bc4b4][%mdl 32]} 17. Ra5 {[%emt 0:09:15]} Rc8 {[%emt 0:03:16] Wards off b6} 18. Qb2 {[%emt 0:05:02]} (18. Qd2 $16 {[%cal Ob5b6]} e5 19. b6) 18... Qd6 $14 {[%emt 0:08:00]} 19. Rfa1 {[%emt 0:02:11]} Rc4 {[%emt 0:06:04]} 20. Rxa7 {[%emt 0:04:58]} Rxa7 {[%emt 0:00:05]} 21. Rxa7 {[%emt 0:00:06]} Rxb4 {[%emt 0:04:02]} 22. Qc3 {[%emt 0:03:53] Black is weak on the dark squares} Bd5 {[%emt 0:10:15]} 23. Rc7 {[%emt 0:16:15]} ({White should try} 23. Qc8+ $14 Kh7 24. Qc2+ (24. Rxf7 Bc4 $11) 24... f5 25. Kh1) 23... Nd7 $1 $11 {[%emt 0:01:28]} 24. Rc8+ {[%emt 0:03:30]} Kh7 $1 {[%emt 0:01:09]} 25. Qd3+ {[%emt 0:07:53]} f5 {[%emt 0:04:57][%cal Od5c4]} 26. Bd2 {[%emt 0:00:25] Nxf5 is the strong threat.} Ra4 {[%emt 0:02:31]} 27. Bc3 {[%emt 0:01:50][%cal Od4f5] Threatens to win with Nxf5!} Ne5 {[%emt 0:02:57]} 28. Qe3 {[%emt 0:02:15][%cal Od4f5]} ({But not} 28. Nxf5 $2 exf5 29. Bxe5 Qxe5 $19) 28... Nc4 {[%emt 0:00:36]} 29. Qd3 {[%emt 0:03:00] [#]} (29. Qe1 $1 $15) 29... Ne5 $2 {[%emt 0:00:39]} (29... Qb6 $1 $19 {has better winning chances. Hoping for ...Nd6.} 30. Qc2 Ra7) 30. Qe3 $1 $17 {[%emt 0:04:46][%cal Od4f5] [#]} ({Avoid the trap} 30. Nxf5 $2 exf5 31. Bxe5 Qxe5 $19) 30... Nc4 {[%emt 0:01:03]} (30... Ra2 $1 $17 {[%cal Oe5g4] ...Ng4! would now be deadly.} 31. h3 (31. Nxf5 $2 Nxf3+ $19) 31... Ng6) 31. Qd3 {[%emt 0:00:24] Weighted Error Value: White=0.21 (precise) /Black=0.22 (precise) .  Loses game:     	White=1     	---        Mistake:       	White=2     	Black=2      Inaccurate:     	White=2     	Black=4      OK:         	White=8     	Black=8      Best:        	White=1     	Black=4      Strong:       	White=2     	Black=2} 1/2-1/2

[Event "1st Festival ChessInLyon-GM 2024"]
[Site "Lyon"]
[Date "2024.04.28"]
[Round "9.2"]
[White "Crut, Aurelien"]
[Black "Boyer, Mahel"]
[Result "1/2-1/2"]
[ECO "C07"]
[WhiteElo "2312"]
[BlackElo "2432"]
[Annotator "TA"]
[PlyCount "32"]
[EventDate "2024.04.23"]
[EventType "tourn"]
[EventCountry "FRA"]
[SourceTitle "playchess.com"]
[Source "ChessBase"]
[SourceQuality "1"]
[TimeControl "40/5400+30:1800+30"]

{[%evp 14,32,5,13,20,18,29,23,27,21,25,9,17,27,59,55,89,87,110,86,275]} 1. e4 {[%emt 0:00:02]} e6 {[%emt 0:03:37]} 2. d4 {[%emt 0:00:09]} d5 {[%emt 0:00:04]} 3. Nd2 {[%emt 0:00:10]} c5 {[%emt 0:00:11]} 4. Ngf3 {[%emt 0:00:27]} a6 {[%emt 0:00:10]} 5. c3 {[%emt 0:01:41]} Nc6 {[%emt 0:06:24]} 6. Bd3 {[%emt 0:00:59]} cxd4 {[%emt 0:00:34]} 7. cxd4 {[%emt 0:00:15]} dxe4 {[%emt 0:00:04]} 8. Nxe4 {[%emt 0:00:14]} Bb4+ {[%emt 0:01:09]} 9. Bd2 {[%emt 0:02:03]} Be7 {[%emt 0:00:36]} 10. O-O {[%emt 0:11:52]} Nf6 {[%emt 0:00:04] White has an edge.} 11. Nxf6+ {[%emt 0:24:18]} Bxf6 {[%emt 0:00:12]} 12. Bc3 {[%emt 0:00:42]} O-O {[%emt 1:23:25]} 13. Ne5 {[%emt 0:05:34]} Qd6 {[%emt 0:00:00]} 14. Re1 {[%emt 0:05:44][%cal Od3h7]} Bd7 {[%emt 0:00:00]} 15. Qf3 {[%emt 0:06:40]} Rad8 {[%emt 0:00:00]} (15... Nxd4 $2 {loses.} 16. Qe4 Nf5 17. g4 $18) 16. Rad1 {[%emt 0:02:58] Re3 is the strong threat. White has more active pieces.} Qc7 $2 {[%emt 0:00:00][%mdl 32768] Weighted Error Value: White=0.01 (flawless) /Black=0.17 (very precise) .  Loses game:     	---       	Black=1      Inaccurate:     	---       	Black=2      OK:         	White=2     	Black=1      Best:        	White=2     	---       . An unexpected result.} (16... Bc8 $16) 1/2-1/2